Cogmind - Beta 15 @@@ ROGUE MODE // 2025.08.05 @ 22:29:32 Player: Some Pennies Result: Destroyed by D-53 Grenadier with Mini Grenade Launcher Performance ------------- Evolutions (0) 0 Regions Visited (4) 800 Robots Destroyed (34) 170 Value Destroyed (424) 424 Prototype IDs (15) 300 Alien Tech Used (0) 0 Bonus (47) 47 TOTAL SCORE: 1741 Bonus ------- Follower Combat Kills 60 Friendly Fire -13 Cogmind --------- Core Integrity 0/250 Matter 216/300 Energy 125/125 System Corruption 1% Temperature Cool (26) Movement Treading (465) Ox4 Location -9/Mines Parts ------- > --- POWER (1) -------- Light Ion Engine > --- PROPULSION (2) --- Advanced Treads > --- UTILITY (2) ------ Huge Storage Unit > --- WEAPON (2) ------- Makeshift Shrapnel Gun Flak Cannon > --- INVENTORY (25) --- VTOL Module VTOL Module VTOL Module VTOL Module Cooling System Medium Storage Unit Structural Scanner Experimental Sensor Array Seismic Detector ECM Suite Core Shielding Light Armor Plating Hardlight Generator Hacking Suite Improved Trap Extractor (0/6) EM Pulse Gun EM Pulse Gun Pulse Rifle Beam Cannon Assault Rifle Assault Rifle Grenade Launcher Datajack Mining Laser Heavy Mace Peak State ------------ > --- POWER ------------ Light Ion Engine > --- PROPULSION ------- Light Treads Light Treads > --- UTILITY ---------- Huge Storage Unit Experimental Sensor Array > --- WEAPON ----------- Assault Rifle Assault Rifle > --- INVENTORY -------- Advanced Treads VTOL Module VTOL Module VTOL Module VTOL Module VTOL Module Heat Sink High-capacity Storage Unit Structural Scanner ECM Suite Core Shielding Light Armor Plating Light Armor Plating Hardlight Generator Hacking Suite Improved Trap Extractor EM Pulse Gun EM Pulse Gun Pulse Rifle Beam Cannon Flak Cannon Grenade Launcher Datajack Mining Laser Heavy Mace [Rating: 19] Favorites ----------- Power Light Ion Engine Engine Light Ion Engine Propulsion Light Treads Treads Light Treads Utility Light Armor Plating Device Seismic Detector Storage Huge Storage Unit Protection Light Armor Plating Weapon Assault Rifle Energy Gun Small Laser Energy Cannon Beam Cannon Ballistic Gun Assault Rifle Ballistic Cannon Flak Cannon Launcher Grenade Launcher Impact Weapon Heavy Mace Special Melee Weapon Datajack Build | -11 -10 -10 -10 -9 ------- Run | Yrd Mat Min Exi Min Slots Evolved . | . . . . . Power . | . . . . . Propulsion . | . . . . . Utility . | . . . . . Weapon . | . . . . . Parts Attached 24 | 7 7 3 2 5 Power 1 | 1 . . . . Engine 1 | 1 . . . . Core . | . . . . . Reactor . | . . . . . Propulsion 3 | 2 . . 1 . Treads 3 | 2 . . 1 . Leg . | . . . . . Wheel . | . . . . . Hover . | . . . . . Flight . | . . . . . Utility 9 | 2 3 1 1 2 Device 3 | 1 . 1 . 1 Storage 4 | 1 2 . 1 . Processor . | . . . . . Hackware . | . . . . . Protection 2 | . 1 . . 1 Artifact . | . . . . . Weapon 11 | 2 4 2 . 3 Energy Gun 2 | 1 1 . . . Energy Cannon 1 | . 1 . . . Ballistic Gun 4 | 1 2 . . 1 Ballistic Cannon 1 | . . . . 1 Launcher 1 | . . . . 1 Special Weapon . | . . . . . Impact Weapon 1 | . . 1 . . Slashing Weapon . | . . . . . Piercing Weapon . | . . . . . Special Melee Weapon 1 | . . 1 . . Unidentified Prototypes 1 | . . 1 . . Parts Lost 2 | . . . . 2 Power . | . . . . . Propulsion 1 | . . . . 1 Utility 1 | . . . . 1 Weapon . | . . . . . Highest Loss Streak 2 | . . . . 2 To Critical Strikes . | . . . . . Average Backups 19 | 2 13 23 24 24 Power . | . . . . . Propulsion 4 | . 3 5 5 4 Utility 8 | . 5 9 10 10 Weapon 6 | . 3 7 9 8 Tool/Special . | . . . . . Unused Backups 30 | . 8 3 . 19 Power 2 | . 2 . . . Propulsion 9 | . 4 . . 5 Utility 13 | . 1 3 . 9 Weapon 6 | . 1 . . 5 Tool/Special . | . . . . . Average Slot Usage (%) 99 | . 100 100 100 99 Engine 14 | . 14 14 14 14 Treads 27 | . 28 28 28 27 Device 3 | . 4 . . 12 Storage 14 | . 14 14 14 14 Protection 10 | . 9 13 14 1 Energy Gun 1 | . 2 . . . Ballistic Gun 22 | . 24 27 . 27 Impact Weapon 1 | . . . 14 . Special Melee Weapon 1 | . . . 14 . Peak Build Rating 19 | 7 10 19 15 18 Average Rating 10 | 5 8 11 14 14 On Entrance 8 | . 7 9 14 14 Naked Turns . | . . . . . Heaviest Build 90 | 11 90 90 90 90 Greatest Support 42 | 40 40 40 42 42 Greatest Overweight (x) 2 | . 2 2 2 2 Average Overweight (x) 1 | . . 1 2 2 Largest Inventory Capacity 25 | 8 25 25 25 25 Average Capacity 20 | 7 16 23 25 25 Most Carried 25 | 5 20 25 25 25 Average Carried 19 | 2 13 23 24 24 Final Capacity 25 | 8 20 25 25 25 Final Carried 25 | 5 20 25 24 25 Class Distribution -------------------- 100% | Mutant Dominant Class ---------------- Mutant | -10/Materials Mutant | -10/Mines Mutant | -10/Exiles Mutant | -9/Mines Resources | -11 -10 -10 -10 -9 ----------- Run | Yrd Mat Min Exi Min Matter Collected 870 | 277 232 221 . 140 Remotely . | . . . . . Salvage Created 792 | 149 422 195 . 26 Parts 71 | 8 39 22 . 2 Haulers Intercepted 2 | . 2 . . . Recyclers Shooed 2 | . 2 . . . Parts Field Recycled . | . . . . . Retrieved Matter . | . . . . . Parts Self-Destructed . | . . . . . Prevented . | . . . . . Kills | -11 -10 -10 -10 -9 ------- Run | Yrd Mat Min Exi Min Combat Hostiles Destroyed 19 | . 9 9 . 1 Guns 19 | . 9 9 . 1 Classes Destroyed 9 | 2 6 . . 1 Worker 2 | . 2 . . . Builder 1 | . 1 . . . Tunneler 5 | 3 . 1 . 1 Hauler 2 | . 2 . . . Recycler 2 | 1 . 1 . . Watcher 3 | . 3 . . . Swarmer 15 | . 6 9 . . Grunt 3 | . 3 . . . Demolisher 1 | . . . . 1 Best Kill Streak 4 | 4 3 3 . 2 Combat Bots Only 3 | . 3 3 . 1 Max Kills in Single Turn 2 | 1 2 1 . 1 Gunslinging 1 | . 1 . . . Exploded . | . . . . . Melee . | . . . . . Uniques/NPCs Destroyed . | . . . . . Combat | -11 -10 -10 -10 -9 -------- Run | Yrd Mat Min Exi Min Hostile Shots Fired 90 | . 31 51 . 8 Missed 25 | . 7 18 . . Hits 65 | . 24 33 . 8 Projectile 65 | . 24 33 . 8 AOE 12 | . . . . 12 Damage Taken 1039 | . 281 269 . 489 Core 265 | . 60 56 . 149 Absorbed by Shields . | . . . . . Core Remaining (%) 100 | 100 . . . . Volleys Fired 99 | 7 59 27 . 6 Largest 2 | 2 2 2 . 2 Hottest 85 | 60 85 40 . 61 Shots Fired 177 | 14 97 54 . 12 Gun 171 | 14 94 54 . 9 Cannon 6 | . 3 . . 3 Launcher . | . . . . . Special . | . . . . . Kinetic 149 | 7 76 54 . 12 Thermal 28 | 7 21 . . . Explosive . | . . . . . Electromagnetic . | . . . . . Robot Hit Streak 11 | 4 11 5 . 3 Robot Miss Streak 7 | 2 3 3 . 7 Penetration Max . | . . . . . Secondary Targets 4 | . 1 3 . . Max Gunslinging Chain 1 | . 1 1 . . Shots Hit Robots 96 | 8 53 25 4 6 Core Hits 48 | 5 28 12 . 3 Critical Kills 1 | 1 . . . . Critical Parts Destroyed 1 | . 1 . . . Critical Strikes 2 | 1 1 . . . Destroy 2 | 1 1 . . . Melee Attacks 4 | . . . 4 . Impact . | . . . . . Slashing . | . . . . . Piercing . | . . . . . Sneak Attacks 4 | . . . 4 . Combat Hostiles . | . . . . . Follow-up Attacks . | . . . . . Damage Inflicted 1052 | 73 554 334 . 91 Guns 1038 | 73 554 334 . 77 Cannons 14 | . . . . 14 Explosions . | . . . . . Melee . | . . . . . Ramming . | . . . . . Kinetic 880 | 29 426 334 . 91 Thermal 172 | 44 128 . . . Explosive . | . . . . . Electromagnetic . | . . . . . Impact . | . . . . . Slashing . | . . . . . Piercing . | . . . . . Highest Corruption 1 | . 1 1 1 1 Average Corruption 1 | . 1 1 1 1 Corruption Purged . | . . . . . Corruption Blocked . | . . . . . Effects 33 | . 10 11 4 8 Message Errors 5 | . 2 2 . 1 Matter Fused 10 | . 4 4 . 2 Heat Flow Errors 6 | . 1 2 . 3 Energy Discharges 2 | . 1 . 1 . Parts Fused 1 | . . 1 . . Data Loss (minor) 6 | . 1 1 3 1 Data Loss (major) 3 | . 1 1 . 1 Overload Shots . | . . . . . Overflow Damage . | . . . . . Projectiles . | . . . . . Explosions . | . . . . . Melee . | . . . . . Knockbacks 3 | . . . . 3 Impact . | . . . . . Kinetic 2 | . . . . 2 Secondary 1 | . . . . 1 Self-Inflicted Damage . | . . . . . Shots . | . . . . . Rammed . | . . . . . Targets Rammed . | . . . . . Kicked . | . . . . . Crushed . | . . . . . Highest Temperature 256 | 40 242 241 . 256 Average Temperature 70 | 18 59 92 . 99 Received Heat Transfer 111 | . 111 . . . Siege Activations . | . . . . . Martial Activations . | . . . . . Shielding Activations . | . . . . . Robots Disrupted . | . . . . . Combat Hostiles . | . . . . . Robots Corrupted . | . . . . . Combat Hostiles . | . . . . . Parts Fried . | . . . . . Impact Corruptions . | . . . . . Robots Melted . | . . . . . Combat Hostiles . | . . . . . Parts Melted 1 | . 1 . . . Heat Transferred 399 | 100 299 . . . Parts Sabotaged . | . . . . . Parts Stolen . | . . . . . Parts Stripped . | . . . . . Power Chain Reactions . | . . . . . Alert | -11 -10 -10 -10 -9 ------- Run | Yrd Mat Min Exi Min Maximum Alert Level . | . . . . . Low Security (%) 100 | 100 100 100 . 100 Level 1 . | . . . . . Level 2 . | . . . . . Level 3 . | . . . . . Level 4 . | . . . . . Level 5 . | . . . . . High Security . | . . . . . Max Security . | . . . . . Peak Influence 85 | 15 85 75 . 34 Initial . | . . . . . Average 11 | 3 13 13 . 1 Influence Increases 673 | 20 310 254 . 89 Destroy 0b10 Robot/C 420 | . 180 180 . 60 Destroy 0b10 Robot/NC 75 | 20 40 10 . 5 Destroy Leader 100 | . 50 30 . 20 Allied During Kill 4 | . . . . 4 Successful Hack 14 | . 10 4 . . Lose Combat Pursuer 60 | . 30 30 . . Influence Decreases 660 | 20 310 254 . 76 Time Decay 600 | 20 310 254 . 16 Lost Part 20 | . . . . 20 Lost Ally 40 | . . . . 40 Squads Dispatched 1 | . 1 . . . Investigation 1 | . 1 . . . Extermination . | . . . . . Reinforcement . | . . . . . Assault . | . . . . . Garrison . | . . . . . Intercept . | . . . . . Searches Triggered . | . . . . . Construction Impeded . | . . . . . Haulers Reinforced . | . . . . . Active Scanning Responses . | . . . . . Cargo Convoy Interrupts . | . . . . . Stealth | -11 -10 -10 -10 -9 --------- Run | Yrd Mat Min Exi Min Distress Signals 2 | . 2 . . . Communications Jammed . | . . . . . Distress Signals . | . . . . . Times Spotted 30 | . 15 11 . 4 Peak Tracking Total 3 | . 3 3 . 2 Tactical Retreats 4 | . 2 2 . . Traps | -11 -10 -10 -10 -9 ------- Run | Yrd Mat Min Exi Min Traps Triggered 3 | . 3 . . . Indirectly . | . . . . . Trap Hack Attempts . | . . . . . Triggered . | . . . . . Disarmed . | . . . . . Reprogrammed . | . . . . . Reused . | . . . . . Traps Extracted . | . . . . . Installed . | . . . . . Triggered . | . . . . . Machines | -11 -10 -10 -10 -9 ---------- Run | Yrd Mat Min Exi Min Machines Disabled . | . . . . . Max in Single Turn . | . . . . . Machines Repaired . | . . . . . Machines Dismantled . | . . . . . Machines Sabotaged . | . . . . . Overloaded Fab Kills . | . . . . . Hacking | -11 -10 -10 -10 -9 --------- Run | Yrd Mat Min Exi Min Machines Accessed 8 | . 5 2 1 . Terminals 6 | . 5 1 . . Fabricators . | . . . . . Repair Stations . | . . . . . Recycling Units . | . . . . . Scanalyzers . | . . . . . Garrison Access . | . . . . . Total Hacks 17 | . 13 3 1 . Successful 8 | . 5 2 1 . Failed 9 | . 8 1 . . Catastrophic . | . . . . . Database Lockouts . | . . . . . Manual 5 | . 5 . . . Terminals 15 | . 13 2 . . Fabricators . | . . . . . Repair Stations . | . . . . . Recycling Units . | . . . . . Scanalyzers . | . . . . . Garrison Access . | . . . . . Terminal Hacks 8 | . 5 2 1 . Record 1 | . . . 1 . Robot Analysis 2 | . 2 . . . Open Door 1 | . . 1 . . Locate Traps 2 | . 2 . . . Dispatch Records 1 | . . 1 . . Hauler Manifests 1 | . 1 . . . Fabricator Hacks . | . . . . . Repair Station Hacks . | . . . . . Recycling Unit Hacks . | . . . . . Scanalyzer . | . . . . . Garrison Access Hacks . | . . . . . Unauthorized Hacks . | . . . . . Terminals . | . . . . . Fabricators . | . . . . . Repair Stations . | . . . . . Recycling Units . | . . . . . Scanalyzers . | . . . . . Garrison Access . | . . . . . Data Cores Recovered . | . . . . . Used . | . . . . . Hacking Detections 5 | . 4 1 . . Full Trace Events . | . . . . . Feedback Events . | . . . . . Feedback Blocked . | . . . . . Robot Schematics Acquired . | . . . . . Robots Built . | . . . . . Authchips . | . . . . . Time . | . . . . . Total Robot Build Rating . | . . . . . Part Schematics Acquired . | . . . . . Parts Built . | . . . . . Authchips . | . . . . . Time . | . . . . . Total Part Build Rating . | . . . . . Parts Repaired . | . . . . . Time . | . . . . . Parts Recycled . | . . . . . Recycled Matter . | . . . . . Retrieved Matter . | . . . . . Retrieved Components . | . . . . . Parts Scanalyzed . | . . . . . Part Schematics Acquired . | . . . . . Parts Damaged . | . . . . . Bothacking | -11 -10 -10 -10 -9 ------------ Run | Yrd Mat Min Exi Min Used RIF Installer . | . . . . . Robots Hacked 4 | . . . 4 . Non-combat 3 | . . . 3 . Combat 1 | . . . 1 . Robot Hacks Applied 4 | . . . 4 . parse_system 4 | . . . 4 . Relay Couplers Released . | . . . . . Fabnet Peak Effective % . | . . . . . Robots Rewired . | . . . . . Allies Hacked . | . . . . . Hacks Repelled . | . . . . . Allies | -11 -10 -10 -10 -9 -------- Run | Yrd Mat Min Exi Min Total Allies 2 | . . . . 2 Largest Group 2 | . . . . 2 Highest-Rated Group 42 | . . . . 42 Highest-Rated Ally 31 | . . . . 31 Total Orders . | . . . . . Ally Attacks 12 | . . . . 12 Total Damage 132 | . . . . 132 Kills 2 | . . . . 2 Allies Corrupted . | . . . . . Allies Melted . | . . . . . Intel | -11 -10 -10 -10 -9 ------- Run | Yrd Mat Min Exi Min Active Infowar (turns) 1214 | 46 559 1 . 608 Sensors 1 | . . 1 . . Seismic 1213 | 46 559 . . 608 Robot Analysis Total 2 | . 2 . . . Derelict Logs Recovered 2 | . . 1 . 1 Drone Launches . | . . . . . Drone Recoveries . | . . . . . Exploration | -11 -10 -10 -10 -9 ------------- Run | Yrd Mat Min Exi Min Turns Passed 4759 | 115 1957 1402 614 671 Spaces Moved 1718 | 67 824 435 187 205 Core 24 | 24 . . . . Treads 1694 | 43 824 435 187 205 Legs . | . . . . . Wheels . | . . . . . Hover . | . . . . . Flight . | . . . . . Fastest Speed 50 | 50 160 240 312 312 Average Speed 254 | 120 212 299 318 312 Slowest Speed 320 | 160 320 320 320 312 Overloaded Moves . | . . . . . Propulsion Burnouts . | . . . . . Robots Hopped . | . . . . . Potential Cave-ins . | . . . . . Cave-ins Triggered . | . . . . . Exploration Rate (%) 56 | 4 86 79 58 53 Regions Visited 4 Branch Regions 3 Pre-discovered Areas 1 | . . . 1 . Known Exits Taken . | . . . . . Unknown Exits Taken 4 | 1 1 1 1 . Scrap Searched 3 | . . 2 . 1 Spaces Dug . | . . . . . Terrain Destroyed . | . . . . . Melee . | . . . . . Projectile . | . . . . . AOE . | . . . . . Terrain Rammed . | . . . . . Walls Destroyed . | . . . . . Machines Disabled . | . . . . . Actions | -11 -10 -10 -10 -9 --------- Run | Yrd Mat Min Exi Min Total 1937 | 85 946 481 203 222 Wait 22 | . 17 . 5 . Move 1714 | 66 823 434 186 205 Hop . | . . . . . Pick Up 43 | 5 24 10 1 3 Fast Attach 12 | 7 4 . 1 . Attach . | . . . . . Detach 1 | . 1 . . . Swap 19 | . 4 5 4 6 Drop 23 | . 14 5 2 2 Fire 99 | 7 59 27 . 6 Melee 4 | . . . 4 . Ram . | . . . . . Kick . | . . . . . Crush . | . . . . . Escape Stasis . | . . . . . Rewire . | . . . . . Trap . | . . . . . Miscellaneous . | . . . . . Route ------- -11/Scrapyard -10/Materials (discovered 5 exits: [*Mat x2] / *Min x2 / [*Sub]) -10/Mines (discovered 2 exits: [*Mat] / *Exi) -10/Exiles -9/Mines (discovered 1 exit: [*Mat]) History --------- Turn | Location | Event 3 | -11/Scrapyard | Discovered new exit (range 15) 116 | -11/Scrapyard | Entered Materials 230 | -10/Materials | Discovered new exit (range 7) 307 | -10/Materials | Build established: Mutant 690 | -10/Materials | Discovered new exit (range 8) 1324 | -10/Materials | Discovered new exit (range 8) 1746 | -10/Materials | Discovered new exit (range 16) 1779 | -10/Materials | Discovered new exit (range 9) 2073 | -10/Materials | Entered Mines 2279 | -10/Mines | Discovered new exit (range 9) 2326 | -10/Mines | Learned Materials stockpile data 2360 | -10/Mines | Met a Derelict who couldn't figure out how to use a Trap Extractor 2771 | -10/Mines | Found a damaged Exp. Sensor Array with a note attached 2778 | -10/Mines | Found Prototype Device 3239 | -10/Mines | Identified Exp. Sensor Array 3459 | -10/Mines | Deemed a non-threat by the Exiles lab entrance 3459 | -10/Mines | Discovered new exit (range 5) 3475 | -10/Mines | Entered Exiles 3552 | -10/Exiles | Met 8R-AWN 3611 | -10/Exiles | Met EX-HEX 3704 | -10/Exiles | Met EX-BIN 3808 | -10/Exiles | Met EX-DEC 3821 | -10/Exiles | Learned location of Zion (-7) 4055 | -10/Exiles | Discovered new exit (range 12) 4089 | -10/Exiles | Entered Mines 4512 | -9/Mines | Learned Materials stockpile data 4552 | -9/Mines | A weapon hastily lodged in a ceiling crevice suddenly fell to the ground 4741 | -9/Mines | Assembled infested the area 4747 | -9/Mines | Core integrity fell below 50% 4755 | -9/Mines | Core integrity fell below 20% 4758 | -9/Mines | Discovered new exit (range 10) 4760 | -9/Mines | Destroyed by D-53 Grenadier with Mini Grenade Launcher Last Messages --------------- 04724_ K-01 Serf collects debris. 04735_ System corrupted: Heat flow error (+276). 04737_ T-07 Excavator destroyed. 04740_ K-01 Serf collects debris. 04740_ Acquired 26 matter. 04741_ ALERT: Infestation in the mines, dispatching Demolisher response squad. 04746_ K-01 Serf collects debris. 04748_ IX-8UX(g) destroyed. 04750_ K-01 Serf collects debris. 04751_ The unstable cave ceiling collapses. 04751_ D-53 Grenadier knocked back. 04752_ The unstable cave ceiling collapses. 04754_ D-53 Grenadier knocked back. 04754_ D-53 Grenadier destroyed. 04755_ The unstable cave ceiling collapses. 04756_ Lgt. Treads destroyed. 04756_ Lgt. Armor Plating destroyed. 04756_ U-05 Engineer lays Concrete. 04758_ EXIT=FOUND Map ----- +----------------------------------------------------+ | ##??????????????????????????????? | | ### # #???????????????????????? | | #???????????????????????? | | #???????????????????????? | | ##### ###??????????????????????????? | | ##??????????????????????????????????? | | #???????????????????????????????????? | | #???????????????????????????????????? | | #???????????????????????????????????? | | ##???????????????????????????????????? | | #????????????????????????????????????? | | #????????????????????????????????????? | | ##???????????? #????????????????????? | | ##?????????? #???????????????????? | | #?????????? #????####???????????? | | # #?????????# #????# ???????????? | | # ##???????? #????# ???????????? | | # #???????? #?????# #????####???? | | # ##??????# #????## $##?? ??#?? | | # ####### ##?### ### ? #?? | | ### # % ?< #?? | | # u d #?? | | # # # #?? | | # # ????? | | ## # #???????? | | ?### ## ### @ #???????? | | ???###### ### #???????? | | ????????# ##?# ##??????? | | ????????## ##?## ##?????? | | ?????????# #### ###???? | | ????????## #???? | | ???????## #??? | | ???????# ### #??? | | ???????# ##??## #??? | | ???????## *%% #??????#??? | | ????????## ### #????????? | | ?????????## ##?## #????????? | | ??????????## #???## #????????? | | ???????????# % ##????## #???????? | | ???????????# ###???????# ??????? | | ???????????# #??????????# ?????? | | ???????????# #???????????## ????? | | ???????????# ?????????????## ????? | | ???????????# ???????????????# ??????? | | ???????????####???????????????????????? | | ??????????????????????????????????????? | | ??????????????????????????????????????? | | ??????????????????????????????????????? | | ??????????????????????????????????????? | | ??????????????????????????????????????? | +----------------------------------------------------+ Best States ------------- Heat Dissipation 25 Energy Generation 10 Energy Capacity 125 Matter Stores 300 Matter Capacity 300 Sight Range 16 Robot Scan Range 20 Terrain Scan Density 10 Armor Coverage 150 Evasion (%) 50 Recoil Reduction 2 Item Schematics ----------------- None Robot Schematics ------------------ None Fabricated ------------ Nothing Repaired ---------- Nothing Alien Tech Used ----------------- None Achievements -------------- None Challenges ------------ None Game ------ Seed FlyingExplosiveKit Manual? 0 Play Time 00:17:05 Cumulative 753.6 hours Start 2025.08.05 @ 22:13:42 End 2025.08.05 @ 22:29:32 Sessions 1 Manual Loads 0 Difficulty Rogue Special Mode None Game No. 402 Rogue 397 Adventurer 5 Explorer 0 Win Type - Total 29 Types 7/1/12/1/1/0/5/1/1/0 Lore% 93 Gallery% 91 Achievement% 83 Wizard Run 0 Options --------- Layout 0 ASCII 0 Keyboard 0 Movement Mouse Keybinds 0 Fullscreen 2 Font 18/SmallcapsGlow Map View 38x25 Zoom Use 81% Tactical HUD 1 Map Filters NONE Filters NONE Steam 1 RUN: e9d81752-d337-4666-ba46-2cfd65d56d65